bitfinex/quotes_SOLUSD_20220218
["timestamp","ask_amount","ask_price","bid_price","bid_amount"]
[1645213346801,23.1336,90.872,90.8,55.0635]
[1645213346802,1.55653104,90.87,90.8,55.0635]
[1645213346998,1.55653104,90.863,90.8,55.0635]
[1645213347200,1.55653104,90.862,90.8,55.0635]
[1645213348402,1.55653104,90.867,90.81,16.5218]
[1645213348601,1.55653104,90.871,90.811,47.48870361]
[1645213348903,24.69013104,90.872,90.811,47.48870361]
[1645213350103,1.55653104,90.871,90.811,47.48870361]
[1645213350302,1.55653104,90.871,90.82,16.5184]
[1645213350504,1.55653104,90.87,90.82,16.5184]
[1645213350702,1.55653104,90.862,90.82,16.5184]
[1645213351005,1.55653104,90.861,90.82,16.5184]
[1645213351603,44.69991618,90.859,90.82,16.5184]
[1645213352203,44.69991618,90.859,90.81,16.5214]
[1645213352403,46.25644722,90.859,90.81,16.5214]
[1645213353205,1.55653104,90.857,90.81,16.5214]
[1645213354109,1.55653104,90.856,90.81,16.5214]
[1645213354905,1.55653104,90.854,90.81,16.5214]
[1645213357108,1.55653104,90.853,90.81,16.5214]
[1645213357306,1.55653104,90.849,90.81,16.5214]
[1645213360010,1.55653104,90.852,90.81,16.5214]
[1645213360412,1.55653104,90.858,90.811,5.503]
[1645213360612,1.55653104,90.858,90.81,16.5214]
[1645213361011,1.55653104,90.857,90.81,16.5214]
[1645213361210,1.55653104,90.856,90.81,16.5214]
[1645213361412,1.55653104,90.855,90.81,16.5214]
[1645213361612,1.55653104,90.856,90.81,16.5214]
[1645213361820,1.55653104,90.855,90.81,16.5214]
[1645213362016,1.55653104,90.855,90.811,5.503]
[1645213363022,1.55653104,90.854,90.811,5.503]
[1645213363216,1.55653104,90.854,90.81,16.5214]
[1645213364018,1.55653104,90.85,90.81,16.5214]
[1645213364221,1.55653104,90.85,90.791,5.503]
[1645213364424,1.55653104,90.836,90.771,5.505]
[1645213364620,1.55653104,90.832,90.771,5.505]
[1645213364819,1.55653104,90.834,90.762,5.506]
[1645213365018,1.55653104,90.833,90.763,53.68037264]
[1645213365219,1.55653104,90.836,90.764,5.506]
[1645213365419,1.55653104,90.833,90.764,5.506]
[1645213365620,1.55653104,90.834,90.765,0.25]
[1645213365818,1.55653104,90.833,90.766,5.506]
[1645213366019,1.55653104,90.833,90.767,0.25]
[1645213366219,1.55653104,90.833,90.768,5.506]
[1645213366419,1.55653104,90.834,90.78,16.527]
[1645213366621,1.55653104,90.832,90.78,16.527]
[1645213366819,53.49241439,90.831,90.78,16.527]
[1645213369642,23.5073,90.838,90.78,16.527]
[1645213369839,1.55653104,90.839,90.781,8.3853831]
[1645213370041,1.55653104,90.851,90.79,16.521]
[1645213370242,1.55653104,90.855,90.791,5.755]
[1645213370441,1.55653104,90.856,90.791,8.3843831]
[1645213370641,52.57851356,90.852,90.792,49.18386881]
[1645213370843,52.57851356,90.852,90.793,5.755]
[1645213371344,52.57851356,90.852,90.8,16.5203]
[1645213371545,22.5798,90.851,90.8,16.5203]
[1645213372946,22.5798,90.851,90.801,5.505]
[1645213373145,22.5798,90.851,90.81,16.5201]
[1645213379049,46.32366942,90.861,90.81,16.5201]
[1645213379050,1.55653104,90.858,90.81,16.5201]
[1645213380455,1.55653104,90.849,90.8,16.5234]
[1645213381061,1.55653104,90.858,90.8,16.5234]
[1645213381257,1.55653104,90.858,90.801,5.503]
[1645213381662,1.55653104,90.854,90.8,16.5234]
[1645213381860,1.55653104,90.854,90.81,16.5212]
[1645213382061,1.55653104,90.856,90.81,16.5212]
[1645213382262,1.55653104,90.857,90.81,16.5212]
[1645213382959,1.55653104,90.858,90.81,16.5212]
[1645213383360,1.55653104,90.857,90.81,16.5212]
[1645213383967,1.55653104,90.858,90.81,16.5212]
[1645213384364,23.7046,90.859,90.81,16.5212]
[1645213385765,25.26113104,90.859,90.81,16.5212]
[1645213385971,23.7046,90.859,90.81,16.5212]
[1645213387168,25.26113104,90.859,90.81,16.5212]
[1645213387368,25.26113104,90.859,90.81,33.2658]
[1645213388993,25.26113104,90.859,90.811,5.503]
[1645213389190,25.26113104,90.859,90.82,16.5198]
[1645213389390,25.26113104,90.859,90.82,61.64789079]
[1645213389811,1.55653104,90.858,90.82,61.64789079]
[1645213390095,25.26113104,90.859,90.82,61.64789079]
[1645213390691,23.7046,90.859,90.82,61.64789079]
[1645213391991,1.55653104,90.86,90.821,6.0]
[1645213392193,1.55653104,90.86,90.83,16.5182]
[1645213392391,23.6545,90.908,90.821,6.0]
[1645213392392,1.55653104,90.862,90.831,5.503]
[1645213392594,1.55653104,90.879,90.831,2.6293831]
[1645213392791,1.55653104,90.884,90.832,5.503]
[1645213392994,41.64751894,90.883,90.832,8.1323831]
[1645213393392,41.64751894,90.883,90.84,16.5132]
[1645213393592,41.64751894,90.883,90.841,5.502]
[1645213394093,41.64751894,90.883,90.833,5.502]
[1645213394494,1.55653104,90.89,90.833,5.502]
[1645213394893,1.55653104,90.892,90.833,5.502]
[1645213395495,50.51724967,90.891,90.85,16.5127]
[1645213397499,110.2,90.89,90.84,16.5161]
[1645213397700,1.55653104,90.882,90.823,24.7957]
[1645213397899,1.55653104,90.881,90.823,24.7957]
[1645213398098,23.6784,90.89,90.843,0.56665139]
[1645213398099,1.55653104,90.88,90.843,0.56665139]
[1645213398298,1.55653104,90.881,90.843,0.56665139]
[1645213398499,1.55653104,90.882,90.843,0.56665139]
[1645213398700,1.55653104,90.883,90.843,0.56665139]
[1645213398898,1.55653104,90.882,90.843,0.56665139]
[1645213399098,1.55653104,90.881,90.843,0.56665139]
[1645213399600,1.55653104,90.882,90.843,0.56665139]
[1645213399999,1.55653104,90.88,90.843,0.56665139]
[1645213400904,1.55653104,90.881,90.843,0.56665139]
[1645213401404,1.55653104,90.885,90.843,0.56665139]
[1645213402103,1.55653104,90.883,90.843,0.56665139]
[1645213402305,1.55653104,90.884,90.843,0.56665139]
[1645213402605,1.55653104,90.883,90.84,17.0824594]
[1645213403208,1.55653104,90.884,90.84,17.0824594]
[1645213404508,1.55653104,90.881,90.84,0.5663594]
[1645213404711,1.55653104,90.874,90.84,0.5663594]
[1645213404908,1.55653104,90.873,90.84,0.5663594]
[1645213405710,1.55653104,90.874,90.84,0.5663594]
[1645213405910,1.55653104,90.875,90.84,0.5663594]
[1645213406110,1.55653104,90.877,90.84,0.5663594]
[1645213408215,1.55653104,90.877,90.827,42.65997457]
[1645213408413,1.55653104,90.876,90.827,42.65997457]
[1645213408712,1.55653104,90.876,90.821,5.503]
[1645213408914,1.55653104,90.875,90.82,16.5187]
[1645213409516,1.55653104,90.876,90.821,5.503]
[1645213409716,1.55653104,90.877,90.83,16.517]
[1645213410116,1.55653104,90.878,90.831,8.1323831]
[1645213410317,1.55653104,90.885,90.831,8.1323831]
[1645213410517,1.55653104,90.885,90.832,2.6293831]
[1645213410718,1.55653104,90.886,90.833,5.503]
[1645213412020,1.55653104,90.886,90.84,16.5162]
[1645213412320,1.55653104,90.898,90.84,16.5162]
[1645213412520,1.55653104,90.898,90.841,32.9492831]
[1645213412719,1.55653104,90.899,90.841,32.9492831]
[1645213412920,1.55653104,90.9,90.842,2.6293831]
[1645213413122,55.07733652,90.899,90.843,5.502]
[1645213413322,55.07733652,90.899,90.85,59.63623491]
[1645213413623,55.07733652,90.899,90.851,5.502]
[1645213414238,55.07733652,90.899,90.85,59.63623491]
[1645213414440,55.07733652,90.899,90.851,5.502]
[1645213414639,55.07733652,90.899,90.86,16.5125]
[1645213417345,1.55653104,90.903,90.861,8.1303831]
[1645213417546,1.55653104,90.904,90.87,16.5106]
[1645213417745,1.55653104,90.905,90.87,16.5106]
[1645213418448,47.53167596,90.904,90.87,16.5106]
[1645213419650,47.53167596,90.904,90.86,16.5125]
[1645213419849,1.55653104,90.902,90.842,5.501]
[1645213420050,1.55653104,90.895,90.842,5.501]
[1645213420249,1.55653104,90.894,90.842,5.501]
[1645213420449,1.55653104,90.893,90.842,5.501]
[1645213420651,1.55653104,90.892,90.827,5.502]
[1645213420851,1.55653104,90.891,90.827,5.502]
[1645213421053,1.55653104,90.891,90.8,55.0614]
[1645213421252,1.55653104,90.878,90.801,28.6252]
[1645213421454,1.55653104,90.876,90.801,31.2545831]
[1645213421652,42.55629512,90.875,90.802,43.02621777]
[1645213421854,42.55629512,90.875,90.803,5.503]
[1645213422053,42.55629512,90.875,90.82,16.5198]
[1645213422255,42.55629512,90.875,90.821,5.503]
[1645213422753,42.55629512,90.875,90.811,5.503]
[1645213422955,42.55629512,90.875,90.83,16.5168]
[1645213423355,42.55629512,90.875,90.872,0.56243504]
[1645213423558,42.55629512,90.875,90.873,0.0948347]
[1645213423755,42.55629512,90.875,90.872,0.56243504]
[1645213424955,2.45,90.874,90.872,0.56243504]
[1645213427158,2.45,90.874,90.831,5.502]
[1645213430059,2.45,90.874,90.832,43.38108934]
[1645213430658,2.45,90.874,90.831,5.502]
[1645213431059,2.45,90.874,90.84,16.5163]
[1645213431263,2.45,90.874,90.841,5.503]
[1645213431461,46.0302,90.889,90.841,5.503]
[1645213431661,1.55653104,90.896,90.833,5.502]
[1645213431862,1.55653104,90.896,90.834,0.25]
[1645213432061,1.55653104,90.902,90.835,5.502]
[1645213432261,48.08454804,90.901,90.85,16.513]
[1645213432462,48.08454804,90.901,90.851,48.37800529]
[1645213434362,48.08454804,90.901,90.86,16.512]
[1645213435966,48.08454804,90.901,90.861,5.501]
[1645213436366,48.08454804,90.901,90.87,16.5109]
[1645213436864,48.08454804,90.901,90.871,5.501]
[1645213438065,48.08454804,90.901,90.87,16.5109]
[1645213438867,48.08454804,90.901,90.86,16.5124]
[1645213439066,48.08454804,90.901,90.841,5.501]
[1645213439267,25.30893104,90.9,90.842,6.0]
[1645213439470,23.7524,90.9,90.823,11.502]
[1645213439768,1.55653104,90.899,90.824,39.43515818]
[1645213439968,5.502,90.898,90.825,11.502]
[1645213440169,1.55653104,90.898,90.825,11.502]
[1645213440369,23.7524,90.9,90.85,16.5144]
[1645213440569,23.7524,90.9,90.852,52.80803623]
[1645213440768,23.7524,90.9,90.853,5.502]
[1645213441376,23.7524,90.9,90.85,16.5144]
[1645213443370,110.2,90.899,90.85,16.5144]
[1645213443570,1.55653104,90.897,90.832,5.502]
[1645213443770,1.55653104,90.886,90.817,5.502]
[1645213443973,1.55653104,90.886,90.81,55.0571]
[1645213443974,1.55653104,90.88,90.798,2.6293831]
[1645213444171,111.75653104,90.883,90.799,5.503]
[1645213444372,110.2,90.878,90.8,70.95943478]
[1645213444572,110.2,90.878,90.801,5.503]
[1645213444772,5.503,90.878,90.801,5.503]
[1645213444971,110.2,90.878,90.801,5.503]
[1645213445372,110.2,90.878,90.82,16.52]
[1645213445574,110.2,90.878,90.821,54.61452311]
[1645213446578,47.92704486,90.879,90.822,2.6293831]
[1645213446777,47.92704486,90.879,90.823,5.503]
[1645213447676,47.92704486,90.879,90.823,8.1323831]
[1645213453299,47.92704486,90.879,90.825,0.66545431]
[1645213453498,47.92704486,90.879,90.826,5.503]
[1645213457907,47.92704486,90.879,90.828,0.66487011]
[1645213458108,47.92704486,90.879,90.829,5.503]
[1645213462711,47.92704486,90.879,90.831,0.66428595]
[1645213463012,47.92704486,90.879,90.832,5.503]
[1645213464210,47.92704486,90.879,90.833,2.6293831]
[1645213465012,47.92704486,90.879,90.834,5.503]
[1645213465211,47.92704486,90.879,90.835,47.3560513]
[1645213465414,47.92704486,90.879,90.84,16.5162]
[1645213465612,47.92704486,90.879,90.841,5.503]
[1645213467014,47.92704486,90.879,90.831,0.66428595]
[1645213467417,5.503,90.878,90.831,0.66428595]
[1645213467914,7.05953104,90.878,90.822,44.71162416]
[1645213468616,1.55653104,90.877,90.822,44.71162416]
[1645213468814,1.55653104,90.876,90.822,44.71162416]
[1645213469013,1.55653104,90.873,90.822,44.71162416]
[1645213469415,1.55653104,90.874,90.822,44.71162416]
[1645213469616,1.55653104,90.876,90.823,5.503]
[1645213470617,1.55653104,90.877,90.823,5.503]
[1645213471024,47.92704486,90.879,90.797,5.503]
[1645213471025,1.55653104,90.866,90.797,5.503]
[1645213471224,5.503,90.865,90.781,5.503]
[1645213471419,1.55653104,90.855,90.781,5.503]
[1645213471622,110.2,90.863,90.772,26.3990831]
[1645213471623,1.55653104,90.846,90.773,5.505]
[1645213471820,29.77172812,90.864,90.774,44.62560323]
[1645213471821,42.1579875,90.845,90.774,44.62560323]
[1645213472021,22.8956,90.844,90.791,44.92807772]
[1645213472322,1.55653104,90.847,90.792,8.3843831]
[1645213472521,24.9357,90.862,90.792,8.3843831]
[1645213472522,1.55653104,90.861,90.792,8.3843831]
[1645213472720,26.49223104,90.862,90.793,2.6293831]
[1645213472922,24.9357,90.862,90.794,5.503]
[1645213473120,49.62629334,90.861,90.794,5.503]
[1645213473321,48.0697623,90.861,90.8,16.5206]
[1645213473721,23.0066,90.86,90.8,16.5206]
[1645213474123,30.06613104,90.86,90.8,16.5206]
[1645213474722,28.5096,90.86,90.8,16.5206]
[1645213475324,1.55653104,90.858,90.8,16.5206]
[1645213475826,1.55653104,90.856,90.8,16.5206]
[1645213476024,5.503,90.855,90.8,16.5206]
[1645213477124,110.2,90.857,90.8,16.5206]
[1645213477326,5.503,90.856,90.8,16.5206]
[1645213478425,5.503,90.858,90.8,16.5206]
[1645213479626,1.55653104,90.857,90.8,16.5206]
[1645213479825,5.503,90.856,90.8,16.5206]
[1645213482026,5.503,90.858,90.8,16.5206]
[1645213482226,110.2,90.859,90.8,16.5206]
[1645213483024,110.2,90.859,90.802,0.66991822]
[1645213483928,110.2,90.849,90.802,0.66991822]
[1645213484126,110.2,90.847,90.802,0.66991822]
[1645213484328,1.55653104,90.844,90.802,0.66991822]
[1645213484527,110.2,90.842,90.802,0.66991822]
[1645213484727,1.55653104,90.839,90.802,0.66991822]
[1645213484927,110.2,90.829,90.802,0.66991822]
[1645213485128,110.2,90.827,90.802,0.66991822]
[1645213485330,110.2,90.825,90.76,16.5307]
[1645213485728,5.507,90.824,90.76,16.5307]
[1645213486228,16.5314,90.82,90.761,46.11663747]
[1645213486433,16.5314,90.82,90.762,5.507]
[1645213486629,16.5314,90.82,90.762,8.1363831]
[1645213486829,46.28780575,90.826,90.77,16.5286]
[1645213487629,46.28780575,90.826,90.764,5.506]
[1645213487832,5.506,90.825,90.763,24.3227]
[1645213488132,5.506,90.825,90.804,0.66952855]
[1645213488329,115.706,90.825,90.746,5.506]
[1645213488630,110.2,90.819,90.746,5.506]
[1645213488829,5.507,90.818,90.746,5.506]
[1645213489249,110.2,90.816,90.746,5.506]
[1645213489431,5.507,90.815,90.746,5.506]
[1645213490337,110.2,90.809,90.75,16.5324]
[1645213490537,39.79562198,90.808,90.75,16.5324]
[1645213490832,5.507,90.807,90.75,16.5324]
[1645213491034,24.2046,90.806,90.75,16.5324]
[1645213491234,5.507,90.805,90.75,16.5324]
[1645213491533,24.2046,90.806,90.75,16.5324]
[1645213493935,24.2046,90.806,90.751,5.507]
[1645213497360,24.2046,90.806,90.75,16.5324]
[1645213498361,0.64582989,90.805,90.75,16.5324]
[1645213499768,0.64582989,90.805,90.751,5.507]
[1645213503869,0.64582989,90.805,90.75,16.5324]
[1645213505574,5.507,90.804,90.74,16.5342]
[1645213505774,110.2,90.799,90.74,16.5342]
[1645213506372,110.2,90.799,90.741,47.89092618]
[1645213506578,16.5347,90.8,90.741,47.89092618]
[1645213506774,16.5347,90.8,90.742,5.508]
[1645213507575,0.64582989,90.805,90.742,5.508]
[1645213508175,0.64582989,90.805,90.742,29.7332]
[1645213508578,0.64582989,90.805,90.75,16.5328]
[1645213508779,0.64582989,90.805,90.751,5.507]
[1645213509179,0.64582989,90.805,90.75,16.5328]
[1645213512080,0.64582989,90.805,90.751,5.507]
[1645213512379,6.15282989,90.805,90.75,16.5328]
[1645213512581,0.64582989,90.805,90.75,16.5328]
[1645213512779,0.64582989,90.805,90.751,5.507]
[1645213513079,0.64582989,90.805,90.761,47.51720661]
[1645213513280,0.64582989,90.805,90.762,5.507]
[1645213513481,39.79562198,90.808,90.762,5.507]
[1645213514580,39.79562198,90.808,90.761,47.51720661]
[1645213514982,39.79562198,90.808,90.762,5.507]
[1645213515182,39.79562198,90.808,90.761,5.507]
[1645213515383,39.79562198,90.808,90.76,16.5302]
[1645213515584,149.99562198,90.808,90.76,16.5302]
[1645213515784,149.99562198,90.808,90.75,16.5324]
[1645213516685,25.17403104,90.807,90.75,16.5324]
[1645213517086,23.6175,90.807,90.75,16.5324]
[1645213517488,23.6175,90.807,90.751,5.507]
[1645213518087,25.17403104,90.807,90.743,5.507]
[1645213518291,1.55653104,90.806,90.743,5.507]
[1645213519589,16.5346,90.8,90.743,5.507]
[1645213519988,110.2,90.799,90.743,5.507]
[1645213520793,16.5346,90.8,90.743,5.507]
[1645213521498,110.2,90.799,90.743,5.507]
[1645213523113,16.5366,90.79,90.743,5.507]
[1645213523314,67.941756,90.789,90.731,5.508]
[1645213524416,67.941756,90.789,90.74,16.5344]
[1645213524617,67.941756,90.789,90.741,5.508]
[1645213524818,45.087556,90.789,90.741,5.508]
[1645213525020,45.087556,90.789,90.739,5.508]
[1645213525218,1.55653104,90.812,90.74,0.25]
[1645213525419,1.55653104,90.812,90.75,16.5324]
[1645213525618,1.55653104,90.816,90.751,30.4849]
[1645213525819,1.55653104,90.818,90.752,6.0]
[1645213526023,1.55653104,90.821,90.753,5.757]
[1645213526223,44.78257415,90.822,90.754,57.89783208]
[1645213526424,44.78257415,90.822,90.755,28.4375]
[1645213526626,44.78257415,90.822,90.756,6.0]
[1645213526825,44.78257415,90.822,90.757,5.757]
[1645213527037,1.55653104,90.839,90.758,6.0]
[1645213527231,1.55653104,90.84,90.759,5.756]
[1645213527425,1.55653104,90.844,90.77,16.5277]
[1645213527625,0.64352897,90.788,90.771,11.756]
[1645213527924,0.64352897,90.788,90.772,45.98135136]
[1645213528124,0.64352897,90.788,90.773,11.757]
[1645213529426,0.64352897,90.788,90.773,11.507]
[1645213529626,0.64352897,90.788,90.773,5.507]
[1645213531027,0.64352897,90.788,90.774,46.09844206]
[1645213531228,0.64352897,90.788,90.775,0.25]
[1645213532629,2.20100764,90.847,90.775,0.25]
[1645213532829,0.6444766,90.847,90.79,16.525]
[1645213533230,49.82185375,90.846,90.79,16.525]
[1645213534635,49.82185375,90.846,90.791,5.505]
[1645213535933,49.82185375,90.846,90.79,16.525]
[1645213537538,49.82185375,90.846,90.791,5.505]
[1645213537940,0.65124042,90.845,90.791,5.505]
[1645213539141,0.65124042,90.845,90.801,45.07856137]
[1645213539345,0.65124042,90.845,90.802,5.505]
[1645213539740,0.65124042,90.845,90.8,16.5234]
[1645213539941,0.65124042,90.845,90.777,5.505]
[1645213540141,110.85124042,90.845,90.79,16.5251]
[1645213540343,110.85124042,90.845,90.777,5.505]
[1645213542345,110.2,90.839,90.78,16.527]
[1645213542546,110.2,90.839,90.781,5.506]
[1645213542946,23.1387,90.838,90.781,5.506]
[1645213548753,5.506,90.837,90.78,16.527]
[1645213548954,23.1387,90.838,90.781,5.506]
[1645213549153,5.506,90.837,90.77,16.5291]
[1645213549373,23.1387,90.838,90.771,5.506]
[1645213552480,23.1387,90.838,90.781,39.81772088]
[1645213552877,23.1387,90.838,90.782,5.506]
[1645213554278,23.1387,90.838,90.79,16.5232]
[1645213554478,23.1387,90.838,90.791,5.505]
[1645213554679,23.1387,90.838,90.783,2.6293831]
[1645213554880,23.1387,90.838,90.784,5.755]
[1645213555182,23.1387,90.838,90.785,6.0]
[1645213555379,23.1387,90.838,90.8,16.5235]
[1645213555579,24.5929,90.844,90.801,5.505]
[1645213555980,24.5929,90.844,90.8,16.5235]
[1645213556980,24.5929,90.844,90.787,23.8998]
[1645213557281,24.5929,90.844,90.79,16.5252]
[1645213557683,24.5929,90.844,90.791,6.0]
[1645213558083,24.5929,90.844,90.782,5.505]
[1645213558285,1.55653104,90.832,90.771,5.505]
[1645213558482,5.506,90.831,90.756,30.0315]
[1645213558683,1.55653104,90.826,90.756,5.506]
[1645213558882,1.55653104,90.821,90.756,5.506]
[1645213559083,110.2,90.819,90.756,5.506]
[1645213559284,110.2,90.817,90.756,5.506]
[1645213559483,5.507,90.816,90.756,5.506]
[1645213560287,110.2,90.817,90.756,5.506]
[1645213560589,16.5337,90.81,90.756,5.506]
[1645213562987,110.2,90.809,90.756,5.506]
[1645213563185,16.5352,90.8,90.756,5.506]
[1645213563386,110.2,90.799,90.756,5.506]
[1645213563786,110.2,90.799,90.731,5.507]
[1645213563986,53.16151416,90.798,90.732,52.37033644]
[1645213564186,53.16151416,90.798,90.733,5.508]
[1645213564590,24.0043,90.797,90.733,5.508]
[1645213564990,24.0043,90.797,90.74,16.5343]
[1645213565190,24.0043,90.797,90.741,5.508]
[1645213565389,24.0043,90.797,90.735,5.508]
[1645213565591,24.0043,90.797,90.742,2.6293831]
[1645213565791,24.0043,90.797,90.743,5.758]
[1645213565989,1.55653104,90.827,90.743,5.758]
[1645213566191,1.55653104,90.833,90.75,16.5328]
[1645213566391,1.55653104,90.834,90.751,5.757]
[1645213566591,1.55653104,90.834,90.751,8.3863831]
[1645213566791,44.26063072,90.833,90.752,51.08514434]
[1645213566990,5.507,90.832,90.753,5.507]
[1645213567190,1.55653104,90.831,90.753,8.1363831]
[1645213567390,5.507,90.83,90.77,16.5281]
[1645213567691,1.55653104,90.829,90.77,16.5281]
[1645213567891,5.506,90.828,90.77,16.5281]
[1645213568095,1.55653104,90.831,90.77,16.5281]
[1645213568291,5.506,90.832,90.77,16.5281]
[1645213568693,115.706,90.832,90.77,16.5281]
[1645213568893,110.2,90.829,90.77,16.5281]
[1645213569093,110.2,90.829,90.751,5.506]
[1645213569295,1.55653104,90.825,90.751,5.506]
[1645213569592,110.2,90.829,90.751,5.506]
[1645213569593,5.507,90.824,90.751,5.506]
[1645213569793,110.2,90.822,90.751,5.506]
[1645213569993,5.507,90.821,90.751,5.506]
[1645213570394,110.2,90.819,90.751,5.506]
[1645213570596,57.08632088,90.818,90.751,5.506]
[1645213570998,110.2,90.817,90.751,5.506]
[1645213571193,5.507,90.816,90.751,5.506]
[1645213571597,110.2,90.817,90.751,5.506]
[1645213571997,16.5337,90.81,90.751,5.506]
[1645213572197,23.1548,90.809,90.751,5.506]
[1645213572603,133.3548,90.809,90.751,5.506]
[1645213572799,23.1548,90.809,90.751,5.506]
[1645213572999,133.3548,90.809,90.751,5.506]
[1645213573700,5.507,90.808,90.751,5.506]
[1645213574902,23.1548,90.809,90.752,2.6293831]
[1645213575522,23.1548,90.809,90.751,5.506]
[1645213575523,133.3548,90.809,90.751,5.506]
[1645213575905,5.507,90.808,90.751,5.506]
[1645213576102,133.3548,90.809,90.751,5.506]
[1645213577304,23.1548,90.809,90.751,5.506]
[1645213577704,23.1548,90.809,90.752,2.6293831]
[1645213577904,23.1548,90.809,90.753,41.23175144]
[1645213578307,23.1548,90.809,90.753,43.86113454]
[1645213578705,23.1548,90.809,90.754,5.507]
[1645213579205,23.1548,90.809,90.76,16.5304]
[1645213579405,110.2,90.808,90.741,5.507]
[1645213579604,5.508,90.807,90.734,22.8359]
[1645213579806,5.508,90.807,90.735,6.0]
[1645213580004,110.2,90.805,90.721,28.2395]
[1645213580204,5.508,90.804,90.721,28.2395]
[1645213580406,110.2,90.802,90.722,42.03984176]
[1645213580605,110.2,90.802,90.723,5.508]
[1645213581206,110.2,90.799,90.723,5.508]
[1645213581608,110.2,90.799,90.702,30.3644]
[1645213581807,110.2,90.797,90.702,30.3644]
[1645213582007,5.509,90.796,90.703,6.0]
[1645213582207,5.509,90.796,90.704,5.509]
[1645213582409,110.2,90.789,90.72,16.5381]
[1645213582612,110.2,90.787,90.72,16.5381]
[1645213583209,110.2,90.785,90.72,16.5381]
[1645213583808,110.2,90.785,90.72,19.1674831]
[1645213586914,110.2,90.785,90.721,0.25]
[1645213587111,110.2,90.785,90.74,16.5343]
[1645213587313,110.2,90.785,90.741,48.10209714]
[1645213587514,5.509,90.812,90.741,48.10209714]
[1645213587712,1.55653104,90.828,90.742,6.25]
[1645213587913,1.55653104,90.828,90.742,8.8793831]
[1645213588213,1.55653104,90.825,90.743,2.6293831]
[1645213588515,1.55653104,90.825,90.744,6.25]
[1645213588715,46.53004103,90.824,90.75,16.5318]
[1645213589015,46.53004103,90.824,90.751,6.25]
[1645213590413,46.53004103,90.824,90.77,16.5275]
[1645213593826,46.53004103,90.824,90.771,5.506]
[1645213594020,46.53004103,90.824,90.78,16.5273]
[1645213595525,1.55653104,90.853,90.78,16.5273]
[1645213595723,1.55653104,90.853,90.781,11.755]
[1645213595922,46.8741,90.875,90.781,11.755]
[1645213595923,1.55653104,90.862,90.8,16.5209]
[1645213596122,1.55653104,90.864,90.801,5.503]
[1645213596326,1.55653104,90.865,90.801,5.503]
[1645213596528,39.85969256,90.863,90.802,50.63201076]
[1645213596725,39.85969256,90.863,90.803,5.503]
[1645213596924,39.85969256,90.863,90.81,16.5205]
[1645213597124,39.85969256,90.863,90.811,5.753]
[1645213598340,39.85969256,90.863,90.82,16.5169]
[1645213598538,39.85969256,90.863,90.821,5.503]
[1645213600539,39.85969256,90.863,90.83,16.5168]
[1645213602042,39.85969256,90.863,90.821,5.503]
[1645213602242,39.85969256,90.863,90.801,2.6293831]
[1645213602443,5.503,90.862,90.79,55.068]
[1645213602743,29.4736,90.862,90.79,55.068]
[1645213603041,23.9706,90.862,90.791,52.38738025]
[1645213603544,23.9706,90.862,90.81,16.5219]
[1645213604648,23.9706,90.862,90.8,16.5237]
[1645213606546,23.9706,90.862,90.801,6.0]
[1645213606749,23.9706,90.862,90.801,2.6293831]
[1645213606946,23.9706,90.862,90.802,6.0]
[1645213607147,23.9706,90.862,90.801,6.0]
[1645213607346,23.9706,90.862,90.81,16.5217]
[1645213607548,23.9706,90.862,90.811,41.8004654]
[1645213607748,39.85969256,90.863,90.812,11.503]
[1645213608147,39.85969256,90.863,90.812,14.1323831]
[1645213608347,39.85969256,90.863,90.82,16.5186]
[1645213608548,5.503,90.888,90.82,16.5186]
[1645213608747,26.18203104,90.891,90.821,8.6293831]